bitfinex-derivatives/quotes_BNBF0:USTF0_20250524
["timestamp","ask_amount","ask_price","bid_price","bid_amount"]
[1748065184073,0.44161555,667.92,667.23,1.11969744]
[1748065184268,0.44161555,667.91,667.23,1.11969744]
[1748065184472,0.44161555,667.9,667.23,1.11969744]
[1748065184671,0.44161555,667.89,667.23,1.11969744]
[1748065184875,0.44161555,667.88,667.23,1.11969744]
[1748065185075,0.44161555,667.87,667.23,1.11969744]
[1748065185275,0.44161555,667.86,667.23,1.11969744]
[1748065185474,1.48749039,667.95,667.23,1.11969744]
[1748065185677,0.44147399,667.94,667.25,1.11969744]
[1748065185976,0.44147399,667.93,667.25,1.11969744]
[1748065186276,1.48749039,667.99,667.25,1.11969744]
[1748065186277,0.44147399,667.92,667.25,1.11969744]
[1748065186476,1.48749039,667.99,667.25,1.11969744]
[1748065186477,0.44147399,667.91,667.25,1.11969744]
[1748065186678,1.48749039,667.99,667.25,1.11969744]
[1748065186973,0.4413642,667.98,667.25,1.11969744]
[1748065187173,0.4413642,667.97,667.25,1.11969744]
[1748065187378,0.4413642,667.96,667.25,1.11969744]
[1748065187579,0.4413642,667.95,667.25,1.11969744]
[1748065187779,0.4413642,667.94,667.25,1.11969744]
[1748065187980,1.48749039,667.99,667.25,1.11969744]
[1748065187981,0.4413642,667.93,667.25,1.11969744]
[1748065188180,0.4413642,667.92,667.25,1.11969744]
[1748065188480,1.48749039,667.99,667.25,1.11969744]
[1748065188682,0.44120898,667.98,667.28,1.11969744]
[1748065188882,0.44120898,667.97,667.28,1.11969744]
[1748065189085,0.44120898,667.96,667.28,1.11969744]
[1748065189286,0.44120898,667.95,667.28,1.11969744]
[1748065189478,0.44119429,667.94,667.28,1.11969744]
[1748065189685,0.44119429,667.93,667.28,1.11969744]
[1748065189884,1.48749039,668.01,667.28,1.11969744]
[1748065190183,0.44112769,668.0,667.28,1.11969744]
[1748065190383,0.44112769,667.99,667.28,1.11969744]
[1748065190684,0.44112769,667.98,667.28,1.11969744]
[1748065190986,0.44112769,667.97,667.28,1.11969744]
[1748065191185,0.44104375,667.96,667.28,1.11969744]
[1748065191386,1.48749039,668.05,667.29,1.11969744]
[1748065191585,0.44096355,668.04,667.29,1.11969744]
[1748065191785,0.44096355,668.03,667.29,1.11969744]
[1748065191988,0.44096355,668.02,667.29,1.11969744]
[1748065192184,0.44096355,668.01,667.29,1.11969744]
[1748065192381,1.48749039,668.05,667.29,1.11969744]
[1748065192382,0.44096355,668.0,667.29,1.11969744]
[1748065192579,0.44096355,667.99,667.29,1.11969744]
[1748065192783,0.44096355,667.98,667.29,1.11969744]
[1748065192984,0.44096355,667.97,667.29,1.11969744]
[1748065193286,1.48749039,668.05,667.29,1.11969744]
[1748065193486,1.92832066,668.04,667.29,1.11969744]
[1748065193687,0.44083027,668.03,667.29,1.11969744]
[1748065193986,0.44083027,668.02,667.29,1.11969744]
[1748065194187,0.44083027,668.01,667.29,1.11969744]
[1748065194386,0.44083027,668.0,667.29,1.11969744]
[1748065194584,1.48749039,668.04,667.29,1.11969744]
[1748065194785,0.4407369,668.03,667.29,1.11969744]
[1748065195085,0.4407369,668.02,667.29,1.11969744]
[1748065195290,0.4407369,668.01,667.29,1.11969744]
[1748065195487,0.4407369,668.0,667.29,1.11969744]
[1748065195688,1.48749039,668.04,667.29,1.11969744]
[1748065195889,0.44068137,668.03,667.29,1.11969744]
[1748065196186,0.44068137,668.02,667.29,1.11969744]
[1748065196391,0.44068137,668.01,667.29,1.11969744]
[1748065196689,0.44068137,668.0,667.29,1.11969744]
[1748065196988,0.44068137,667.99,667.29,1.11969744]
[1748065197289,1.48749039,668.09,667.29,1.11969744]
[1748065197490,0.44061892,668.08,667.29,1.11969744]
[1748065197688,0.44061892,668.07,667.29,1.11969744]
[1748065197888,0.44061892,668.06,667.29,1.11969744]
[1748065198090,0.44061892,668.05,667.29,1.11969744]
[1748065198388,0.4406013,668.04,667.24,1.11969744]
[1748065198584,0.4406013,668.03,667.24,1.11969744]
[1748065198789,0.4406013,668.02,667.24,1.11969744]
[1748065198989,0.4406013,668.01,667.24,1.11969744]
[1748065199191,0.4406013,668.0,667.24,1.11969744]
[1748065199391,0.4406013,667.99,667.24,1.11969744]
[1748065199590,0.4406013,667.98,667.24,1.11969744]
[1748065199891,0.29934742,668.12,667.24,1.11969744]
[1748065200091,0.44059738,668.11,667.24,1.11969744]
[1748065200285,0.44059738,668.1,667.24,1.11969744]
[1748065200485,0.44059738,668.09,667.24,1.11969744]
[1748065200791,0.44059738,668.08,667.24,1.11969744]
[1748065200991,0.44059738,668.07,667.24,1.11969744]
[1748065201188,1.11773492,667.95,667.2,1.11969744]
[1748065203192,1.11773492,667.98,667.22,1.11969744]
[1748065205294,1.11773492,667.97,667.23,1.11969744]
[1748065207092,1.11773492,667.97,667.24,1.11969744]
[1748065209692,1.11773492,667.93,667.28,1.11969744]
[1748065212393,1.11773492,667.97,667.23,1.11969744]
[1748065212692,0.44071804,667.96,667.23,1.11969744]
[1748065212996,0.44073712,667.95,667.23,1.11969744]
[1748065213192,1.11773492,667.97,667.23,1.11969744]
[1748065213390,0.44073581,667.96,667.23,1.11969744]
[1748065213591,1.11773492,667.97,667.23,1.11969744]
[1748065213592,0.44073581,667.95,667.23,1.11969744]
[1748065213789,0.44073581,667.94,667.23,1.11969744]
[1748065213990,1.11773492,667.97,667.23,1.11969744]
[1748065214187,0.44077739,667.96,667.23,1.11969744]
[1748065214389,1.11773492,667.94,667.19,1.11969744]
[1748065216793,1.11773492,667.93,667.2,1.11969744]
[1748065219596,1.11773492,667.94,667.21,1.11969744]
[1748065221597,0.44084275,667.93,667.21,1.11969744]
[1748065221792,1.11773492,667.94,667.21,1.11969744]
[1748065222198,0.44085168,667.93,667.21,1.11969744]
[1748065222398,1.11773492,667.91,667.24,1.11969744]
[1748065225000,1.11773492,667.88,667.27,1.11969744]
[1748065227103,1.11773492,667.86,667.29,1.11969744]
[1748065229404,1.11773492,667.91,667.36,1.11969744]
[1748065232206,1.11773492,667.92,667.36,1.11969744]
[1748065234309,1.48749039,668.04,667.36,1.11969744]
[1748065234310,1.11773492,667.9,667.36,1.11969744]
[1748065236410,1.11773492,667.88,667.37,1.11969744]
[1748065238916,1.11773492,667.85,667.4,1.11969744]
[1748065240914,1.11773492,667.85,667.38,1.11969744]
[1748065241110,1.11773492,667.82,667.38,1.11969744]
[1748065243614,1.11773492,667.83,667.27,1.11969744]
[1748065243814,0.44197972,667.82,667.27,1.11969744]
[1748065244014,1.11773492,667.83,667.27,1.11969744]
[1748065245915,0.44137878,667.82,667.27,1.11969744]
[1748065246216,1.11773492,667.83,667.27,1.11969744]
[1748065246217,0.44137878,667.81,667.27,1.11969744]
[1748065246409,0.44137878,667.8,667.27,1.11969744]
[1748065246613,1.11773492,667.83,667.27,1.11969744]
[1748065246815,0.44135644,667.82,667.27,1.11969744]
[1748065247014,1.11773492,667.83,667.27,1.11969744]
[1748065247015,0.44135644,667.81,667.27,1.11969744]
[1748065247211,1.11773492,667.83,667.27,1.11969744]
[1748065247416,0.44133841,667.82,667.27,1.11969744]
[1748065247714,0.44133841,667.81,667.27,1.11969744]
[1748065247911,1.11773492,667.83,667.27,1.11969744]
[1748065248115,0.44133677,667.82,667.27,1.11969744]
[1748065248316,0.44133677,667.81,667.25,1.11969744]
[1748065248513,0.44133677,667.8,667.25,1.11969744]
[1748065248712,0.44114359,667.79,667.25,1.11969744]
[1748065248915,0.44114359,667.78,667.25,1.11969744]
[1748065249118,1.11773492,667.82,667.25,1.11969744]
[1748065249119,0.44114359,667.77,667.25,1.11969744]
[1748065249313,0.44114359,667.76,667.25,1.11969744]
[1748065249513,0.44114359,667.75,667.25,1.11969744]
[1748065249718,0.44114359,667.74,667.25,1.11969744]
[1748065249914,0.44114359,667.73,667.25,1.11969744]
[1748065250113,0.44114359,667.72,667.25,1.11969744]
[1748065250319,0.44114359,667.71,667.25,1.11969744]
[1748065250520,0.44114359,667.7,667.25,1.11969744]
[1748065250720,0.44114359,667.69,667.25,1.11969744]
[1748065250920,0.44114359,667.68,667.25,1.11969744]
[1748065251215,1.11773492,667.63,667.06,1.11969744]
[1748065253420,1.11773492,667.66,667.03,1.11969744]
[1748065255724,1.11773492,667.68,667.01,1.11969744]
[1748065258131,1.11773492,667.69,667.0,1.11969744]
[1748065260730,1.11773492,667.7,667.0,1.11969744]
[1748065267133,1.11773492,667.81,666.97,1.11969744]
[1748065268642,1.11773492,667.83,666.98,1.11969744]
[1748065268839,0.43998311,667.82,666.98,1.11969744]
[1748065269134,0.43998311,667.81,666.98,1.11969744]
[1748065269338,1.11773492,667.83,666.98,1.11969744]
[1748065269539,0.43997515,667.82,666.98,1.11969744]
[1748065269838,0.43998064,667.81,666.98,1.11969744]
[1748065270040,1.11773492,667.83,666.98,1.11969744]
[1748065270240,0.43992957,667.82,666.98,1.11969744]
[1748065270432,0.43992957,667.81,666.98,1.11969744]
[1748065270633,1.11773492,667.83,666.98,1.11969744]
[1748065270938,1.55766001,667.82,666.98,1.11969744]
[1748065271140,0.43992509,667.81,666.98,1.11969744]
[1748065273244,1.11773492,667.76,666.9,1.11969744]
[1748065273543,0.43984426,667.75,666.9,1.11969744]
[1748065273739,0.43984426,667.74,666.9,1.11969744]
[1748065274043,1.11773492,667.76,666.9,1.11969744]
[1748065274243,0.43982012,667.75,666.9,1.11969744]
[1748065274443,0.43982012,667.74,666.9,1.11969744]
[1748065274643,0.43982012,667.73,666.9,1.11969744]
[1748065274941,1.11773492,667.76,666.9,1.11969744]
[1748065275139,0.43980781,667.75,666.9,1.11969744]
[1748065275342,1.11773492,667.76,666.9,1.11969744]
[1748065276045,1.11773492,667.75,666.89,1.11969744]
[1748065278644,1.11773492,667.77,666.9,1.11969744]
[1748065278845,0.43973846,667.76,666.9,1.11969744]
[1748065279045,1.11773492,667.77,666.9,1.11969744]
[1748065279246,0.43973444,667.76,666.9,1.11969744]
[1748065279543,1.11773492,667.77,666.9,1.11969744]
[1748065279744,0.43972284,667.76,666.9,1.11969744]
[1748065280045,1.11773492,667.77,666.9,1.11969744]
[1748065280345,0.43972577,667.76,666.9,1.11969744]
[1748065280546,1.11773492,667.77,666.9,1.11969744]
[1748065280745,0.43971631,667.76,666.9,1.11969744]
[1748065281047,1.11773492,667.77,666.9,1.11969744]
[1748065281248,0.43971592,667.76,666.9,1.11969744]
[1748065281446,1.11773492,667.77,666.9,1.11969744]
[1748065281646,0.43968409,667.76,666.9,1.11969744]
[1748065281846,1.11773492,667.77,666.9,1.11969744]
[1748065282046,0.43968374,667.76,666.9,1.11969744]
[1748065282248,1.11773492,667.77,666.9,1.11969744]
[1748065282447,0.439679,667.76,666.9,1.11969744]
[1748065282647,1.11773492,667.77,666.9,1.11969744]
[1748065282846,0.43967851,667.76,666.9,1.11969744]
[1748065283042,1.11773492,667.77,666.9,1.11969744]
[1748065283248,0.43967831,667.76,666.9,1.11969744]
[1748065283450,1.11773492,667.77,666.9,1.11969744]
[1748065283650,0.43967781,667.76,666.9,1.11969744]
[1748065283850,1.11773492,667.75,666.92,1.11969744]
[1748065286455,1.11773492,667.75,666.76,1.36952527]
[1748065286456,1.11773492,667.72,666.95,1.11969744]
[1748065288655,1.11773492,667.71,666.95,1.11969744]
[1748065290957,1.11773492,667.69,666.94,1.11969744]
[1748065293056,1.11773492,667.69,666.13,0.73587561]
[1748065293057,1.11773492,667.67,666.99,1.11969744]
[1748065293357,0.43986656,667.66,666.99,1.11969744]
[1748065293556,0.43986656,667.65,666.99,1.11969744]
[1748065293755,0.43986656,667.64,666.99,1.11969744]
[1748065293951,0.43986656,667.63,666.99,1.11969744]
[1748065294150,0.43986656,667.62,666.99,1.11969744]
[1748065294353,0.43986656,667.61,666.99,1.11969744]
[1748065294554,0.43986656,667.6,666.99,1.11969744]
[1748065294752,0.43986656,667.59,666.99,1.11969744]
[1748065295052,0.43986656,667.58,666.99,1.11969744]
[1748065295254,0.43986656,667.57,666.99,1.11969744]
[1748065295554,0.43986656,667.56,666.99,1.11969744]
[1748065295749,0.43986656,667.55,666.99,1.11969744]
[1748065295953,0.43986656,667.54,666.99,1.11969744]
[1748065296155,1.11773492,667.5,666.62,1.11969744]
[1748065296355,0.43986656,667.49,666.62,1.11969744]
[1748065296560,0.43986656,667.48,666.62,1.11969744]
[1748065296758,0.43986656,667.47,666.62,1.11969744]
[1748065297058,0.43962859,667.46,666.62,1.11969744]
[1748065297262,1.11773492,667.5,666.62,1.11969744]
[1748065297458,0.43956417,667.49,666.62,1.11969744]
[1748065297651,0.43956417,667.48,666.62,1.11969744]
[1748065297853,0.43956417,667.47,666.62,1.11969744]
[1748065298151,1.11773492,667.5,666.62,1.11969744]
[1748065298355,0.43944354,667.49,666.62,1.11969744]
[1748065298557,1.11773492,667.45,666.61,1.11969744]
[1748065301062,1.11773492,667.44,666.61,1.11969744]
[1748065303765,1.11773492,667.45,666.61,1.11969744]
[1748065309875,1.11773492,667.46,666.63,1.11969744]
[1748065312274,1.11773492,667.46,666.64,1.11969744]
[1748065314581,1.11773492,667.43,666.67,1.11969744]
[1748065316782,1.11773492,667.44,666.66,1.11969744]
[1748065318683,1.11773492,667.45,666.65,1.11969744]
[1748065321285,1.11773492,667.46,666.64,1.11969744]
[1748065323691,1.11773492,667.47,666.64,1.11969744]
[1748065325590,1.11773492,667.52,666.59,1.11969744]
[1748065325791,0.43901133,667.51,666.59,1.11969744]
[1748065325991,1.11773492,667.52,666.59,1.11969744]
[1748065326193,0.43901149,667.51,666.59,1.11969744]
[1748065326395,1.11773492,667.52,666.59,1.11969744]
[1748065326592,0.43902049,667.51,666.59,1.11969744]
[1748065326793,1.11773492,667.52,666.59,1.11969744]
[1748065326990,0.43902241,667.51,666.59,1.11969744]
[1748065327187,1.11773492,667.52,666.59,1.11969744]
[1748065327488,1.55679374,667.51,666.59,1.11969744]
[1748065327689,1.11773492,667.51,666.59,1.11969744]
[1748065330197,0.43919807,667.5,666.59,1.11969744]
[1748065330398,1.11773492,667.51,666.59,1.11969744]
[1748065330597,0.43919807,667.5,666.59,1.11969744]
[1748065330800,1.11773492,667.51,666.59,1.11969744]
[1748065330993,0.43919923,667.5,666.59,1.11969744]
[1748065331193,1.11773492,667.51,666.59,1.11969744]
[1748065331393,0.439255,667.5,666.59,1.11969744]
[1748065331596,1.11773492,667.51,666.59,1.11969744]
[1748065331797,0.43925403,667.5,666.59,1.11969744]
[1748065332097,1.55698895,667.49,666.6,1.11969744]
[1748065332295,1.11773492,667.49,666.6,1.11969744]
[1748065334204,1.11773492,667.47,666.6,1.11969744]
[1748065336604,1.11773492,667.46,666.61,1.11969744]
[1748065338502,0.43947617,667.45,666.61,1.11969744]
[1748065338701,0.43947617,667.44,666.61,1.11969744]
[1748065338901,0.43947617,667.43,666.61,1.11969744]
[1748065339107,0.43947617,667.42,666.61,1.11969744]
[1748065339407,1.11773492,667.31,666.47,1.11969744]
[1748065339606,0.43947617,667.3,666.47,1.11969744]
[1748065341410,1.11773492,667.21,666.39,1.11969744]
[1748065343311,1.11773492,667.23,666.43,1.11969744]
[1748065346313,1.11773492,667.24,666.43,1.11969744]
[1748065349412,1.11773492,667.24,665.61,0.26088032]
[1748065349413,1.11773492,667.21,666.45,1.11969744]
[1748065351409,1.11773492,667.19,666.46,1.11969744]
[1748065353616,1.11773492,667.17,666.48,1.11969744]
[1748065356316,1.48749039,667.32,666.48,1.11969744]
[1748065356317,1.11773492,667.18,666.48,1.11969744]
[1748065358518,1.11773492,667.37,666.48,1.11969744]
[1748065358819,0.44034257,667.36,666.48,1.11969744]
[1748065359017,0.44034257,667.35,666.48,1.11969744]
[1748065359217,0.44034257,667.34,666.48,1.11969744]
[1748065359419,1.11773492,667.37,666.48,1.11969744]
[1748065361219,1.11773492,667.36,666.62,1.11969744]
[1748065363922,1.11773492,667.35,666.65,1.11969744]
[1748065366121,1.11773492,667.34,666.64,1.11969744]
[1748065368518,1.11773492,667.33,666.66,1.11969744]
[1748065370623,1.11773492,667.33,666.67,1.11969744]
[1748065373129,1.11773492,667.31,666.68,1.11969744]
[1748065378623,1.11773492,667.3,666.68,1.11969744]
[1748065381229,1.11773492,667.3,666.69,1.11969744]
[1748065386337,3.74391534,668.04,666.7,1.11969744]
[1748065386338,1.11773492,667.29,666.7,1.11969744]
[1748065390142,1.11773492,667.3,666.72,1.11969744]
[1748065391241,1.11773492,667.31,666.73,1.11969744]
[1748065393342,1.11773492,667.35,666.71,1.11969744]
[1748065397743,1.11773492,667.34,666.7,1.11969744]
[1748065401645,1.11773492,667.34,666.72,1.11969744]
[1748065404249,1.11773492,667.31,666.74,1.11969744]
[1748065406347,1.11773492,667.31,666.75,1.11969744]
[1748065406547,1.11773492,667.3,666.75,1.11969744]
[1748065409352,1.11773492,667.28,666.76,1.11969744]
[1748065412057,1.11773492,667.31,666.74,1.11969744]
[1748065414454,1.11773492,667.34,666.76,1.11969744]
[1748065416355,0.44108334,667.33,666.76,1.11969744]
[1748065416655,1.11773492,667.34,666.76,1.11969744]
[1748065416957,1.11773492,667.31,666.79,1.11969744]
[1748065419455,1.11773492,667.31,666.63,1.36952527]
[1748065419456,1.11773492,667.42,666.86,1.11969744]
[1748065422059,1.11773492,667.46,666.86,1.11969744]
[1748065424561,1.11773492,667.46,666.85,1.11969744]
[1748065426464,1.11773492,667.47,666.83,1.11969744]
[1748065429666,1.11773492,667.48,666.89,1.11969744]
[1748065431871,1.11773492,667.5,666.88,1.11969744]
[1748065434071,1.11773492,667.49,666.88,1.11969744]
[1748065436975,1.11773492,667.47,666.91,1.11969744]
[1748065439978,1.11773492,667.47,666.9,1.11969744]
[1748065440179,1.11773492,667.48,666.9,1.11969744]
[1748065445682,1.11773492,667.51,666.88,1.11969744]
[1748065447989,0.2607728,667.89,666.88,1.11969744]
[1748065447990,1.11773492,667.49,666.88,1.11969744]
[1748065449787,1.11773492,667.5,666.87,1.11969744]
[1748065452590,1.11773492,667.48,666.89,1.11969744]
[1748065454787,1.11773492,667.76,666.84,1.11969744]
[1748065454990,0.44011645,667.75,666.84,1.11969744]
[1748065455191,0.44011645,667.74,666.84,1.11969744]
[1748065455391,0.44011645,667.73,666.84,1.11969744]
[1748065455691,0.44011645,667.72,666.84,1.11969744]
[1748065455891,0.44011645,667.71,666.84,1.11969744]
[1748065456090,0.44011645,667.7,666.84,1.11969744]
[1748065456288,0.44011645,667.69,666.84,1.11969744]
[1748065456489,1.11773492,667.76,666.84,1.11969744]
[1748065456689,0.44003634,667.75,666.84,1.11969744]
[1748065456887,0.44003634,667.74,666.84,1.11969744]
[1748065457091,0.44003634,667.73,666.84,1.11969744]
[1748065457292,0.44003634,667.72,666.86,1.11969744]
[1748065457492,0.44003634,667.71,666.86,1.11969744]
[1748065457694,0.44003634,667.7,666.86,1.11969744]
[1748065457893,0.44003634,667.69,666.86,1.11969744]
[1748065458089,0.44003634,667.68,666.86,1.11969744]
[1748065458296,1.11773492,667.74,666.86,1.11969744]
[1748065458494,0.43997981,667.73,666.86,1.11969744]
[1748065458691,0.43997981,667.72,666.86,1.11969744]
[1748065458891,0.43997716,667.71,666.86,1.11969744]
[1748065459095,1.11773492,667.74,666.86,1.11969744]
[1748065459291,0.4399392,667.73,666.86,1.11969744]
[1748065459494,0.4399392,667.72,666.89,1.11969744]
[1748065459692,1.11773492,667.81,666.89,1.11969744]
[1748065459995,0.43994096,667.8,666.89,1.11969744]
[1748065460192,0.43995652,667.79,666.89,1.11969744]
[1748065460397,0.43995652,667.78,666.89,1.11969744]
[1748065460597,0.43995652,667.77,666.89,1.11969744]
[1748065460896,0.43995652,667.76,666.89,1.11969744]
[1748065461199,0.43995652,667.75,666.91,1.11969744]
[1748065461394,0.43995652,667.74,666.91,1.11969744]
[1748065461594,0.43995652,667.73,666.91,1.11969744]
[1748065461795,0.43995652,667.72,666.91,1.11969744]
[1748065461997,1.11773492,667.77,666.91,1.11969744]
[1748065462297,0.43988018,667.76,666.91,1.11969744]
[1748065462592,1.11773492,667.77,666.91,1.11969744]
[1748065462593,0.43985107,667.75,666.91,1.11969744]
[1748065462797,0.43985107,667.74,666.91,1.11969744]
[1748065462996,0.43985107,667.73,666.91,1.11969744]
[1748065463200,1.11773492,667.77,666.91,1.11969744]
[1748065463394,0.43983379,667.76,666.91,1.11969744]
[1748065463598,1.11773492,667.74,666.94,1.11969744]
[1748065463799,0.43983379,667.73,666.94,1.11969744]
[1748065464000,1.11773492,667.74,666.94,1.11969744]
[1748065464197,0.43982734,667.73,666.94,1.11969744]
[1748065464400,1.11773492,667.74,666.94,1.11969744]
[1748065464695,0.43982236,667.73,666.94,1.11969744]
[1748065464900,1.11773492,667.74,666.94,1.11969744]
[1748065465196,0.44001928,667.73,666.94,1.11969744]
[1748065465400,1.11773492,667.74,666.94,1.11969744]
[1748065465598,0.44001978,667.73,666.94,1.11969744]
[1748065465903,1.11773492,667.74,666.94,1.11969744]
[1748065466100,0.4400077,667.73,666.94,1.11969744]
[1748065466299,1.11773492,667.74,666.94,1.11969744]
[1748065466501,0.44000013,667.73,666.94,1.11969744]
[1748065466802,1.11773492,667.74,666.94,1.11969744]
[1748065467003,0.44000014,667.73,666.94,1.11969744]
[1748065467203,1.11773492,667.74,666.94,1.11969744]
[1748065467398,0.44000117,667.73,666.94,1.11969744]
[1748065467603,0.44000322,667.73,666.94,1.11969744]
[1748065467806,0.44000322,667.72,666.94,1.11969744]
[1748065468005,1.11773492,667.74,666.94,1.11969744]
[1748065468206,0.43996468,667.73,666.94,1.11969744]
[1748065468505,1.11773492,667.74,666.94,1.11969744]
[1748065468703,0.43998311,667.73,666.94,1.11969744]
[1748065468904,0.43997019,667.72,666.94,1.11969744]
[1748065469204,1.11773492,667.74,666.94,1.11969744]
[1748065469400,0.43998571,667.73,666.94,1.11969744]
[1748065469605,0.43998571,667.72,666.94,1.11969744]
[1748065469905,1.11773492,667.67,667.0,1.11969744]
[1748065472007,1.11773492,667.67,667.01,1.11969744]
[1748065474107,1.11773492,667.67,666.87,1.36952527]
[1748065474108,1.11773492,667.64,667.03,1.11969744]
[1748065478405,1.11773492,667.62,667.05,1.11969744]
[1748065481113,1.11773492,667.65,667.02,1.11969744]
[1748065482815,0.44028809,667.64,667.02,1.11969744]
[1748065483014,0.44028809,667.63,667.02,1.11969744]
[1748065483209,0.44028809,667.62,667.02,1.11969744]
[1748065483408,1.11773492,667.65,667.02,1.11969744]
[1748065483610,0.44032908,667.64,667.02,1.11969744]
[1748065483812,0.44032934,667.63,667.02,1.11969744]
[1748065484010,0.44032934,667.62,667.02,1.11969744]
[1748065484209,1.11773492,667.59,666.92,1.11969744]
[1748065486615,1.11773492,667.6,666.91,1.11969744]
[1748065489321,1.11773492,667.56,666.95,1.11969744]
[1748065491523,1.11773492,667.55,666.95,1.11969744]
[1748065494227,1.11773492,667.56,666.95,1.11969744]
[1748065496426,1.11773492,667.54,666.98,1.11969744]
[1748065498627,1.11773492,667.53,666.98,1.11969744]
[1748065500927,1.11773492,667.53,666.99,1.11969744]
[1748065502930,1.11773492,667.52,666.99,1.11969744]
[1748065505527,1.11773492,667.51,667.04,1.11969744]
[1748065507531,1.11773492,667.5,667.05,1.11969744]
[1748065511135,1.11773492,667.49,667.05,1.11969744]
[1748065513838,1.11773492,667.49,666.95,1.36952527]
[1748065513839,1.11773492,667.47,666.99,1.11969744]
[1748065516740,1.11773492,667.47,666.97,1.11969744]
[1748065519145,1.11773492,667.48,666.95,1.11969744]
[1748065524448,1.11773492,667.49,666.95,1.11969744]
[1748065526547,0.26068294,668.1,666.95,1.11969744]
[1748065526548,1.11773492,667.48,666.95,1.11969744]
[1748065528352,0.44053961,667.47,666.95,1.11969744]
[1748065528549,1.11773492,667.48,666.95,1.11969744]
[1748065529254,0.44057175,667.47,666.95,1.11969744]
[1748065529454,1.11773492,667.48,666.95,1.11969744]
[1748065529654,0.44053522,667.47,666.83,1.11969744]
[1748065529855,1.11773492,667.49,666.83,1.11969744]
[1748065530053,0.44054105,667.48,666.83,1.11969744]
[1748065530354,1.11773492,667.49,666.83,1.11969744]
[1748065530555,0.44052831,667.48,666.83,1.11969744]
[1748065530752,1.11773492,667.49,666.83,1.11969744]
[1748065530952,0.44052831,667.48,666.83,1.11969744]
[1748065531154,1.11773492,667.49,666.83,1.11969744]
[1748065531355,0.44054337,667.48,666.83,1.11969744]
[1748065531556,1.11773492,667.49,666.83,1.11969744]
[1748065531756,0.44051766,667.48,666.83,1.11969744]
[1748065531953,1.11773492,667.49,666.83,1.11969744]
[1748065532152,0.44051776,667.48,666.83,1.11969744]
[1748065532359,1.11773492,667.49,666.83,1.11969744]
[1748065532560,0.44051,667.48,666.83,1.11969744]
[1748065532753,1.11773492,667.49,666.83,1.11969744]
[1748065532954,0.4405099,667.48,666.83,1.11969744]
[1748065533155,1.11773492,667.49,666.83,1.11969744]
[1748065533458,0.44051881,667.48,666.83,1.11969744]
[1748065533655,1.11773492,667.49,666.83,1.11969744]
[1748065533861,0.44049984,667.48,666.83,1.11969744]
[1748065534059,1.11773492,667.49,666.83,1.11969744]
[1748065534262,0.44049925,667.48,666.83,1.11969744]
[1748065534459,1.11773492,667.49,666.83,1.11969744]
[1748065534658,0.44049584,667.48,666.83,1.11969744]
[1748065534959,1.11773492,667.49,666.83,1.11969744]
[1748065535161,0.44049807,667.48,666.83,1.11969744]
[1748065535358,1.11773492,667.49,666.83,1.11969744]
[1748065535559,0.44049142,667.48,666.83,1.11969744]
[1748065535762,1.11773492,667.49,666.83,1.11969744]
[1748065535958,0.4404966,667.48,666.83,1.11969744]
[1748065536158,1.11773492,667.49,666.83,1.11969744]
[1748065536357,0.44049805,667.48,666.83,1.11969744]
[1748065536559,1.11773492,667.49,666.83,1.11969744]
[1748065536760,0.44045415,667.48,666.83,1.11969744]
[1748065536963,1.11773492,667.49,666.83,1.11969744]
[1748065537263,0.44045054,667.48,666.83,1.11969744]
[1748065537457,1.11773492,667.49,666.83,1.11969744]
[1748065537658,0.44040997,667.48,666.83,1.11969744]
[1748065537860,1.11773492,667.49,666.83,1.11969744]
[1748065538060,0.44041715,667.48,666.83,1.11969744]
[1748065538259,1.11773492,667.49,666.83,1.11969744]
[1748065538459,0.44041006,667.48,666.83,1.11969744]
[1748065538664,1.11773492,667.49,666.83,1.11969744]
[1748065538863,0.44041545,667.48,666.83,1.11969744]
[1748065539058,1.48749039,667.67,665.75,3.42407985]
[1748065539059,1.11773492,667.41,666.92,1.11969744]
[1748065541366,1.11773492,667.39,666.93,1.11969744]
[1748065544065,1.11773492,667.41,666.93,1.11969744]
[1748065544269,1.11773492,667.41,666.9,1.11969744]
[1748065546572,1.11773492,667.43,666.9,1.11969744]
[1748065550970,1.11773492,667.42,666.9,1.11969744]
[1748065551177,1.11773492,667.42,666.89,1.11969744]
[1748065552871,0.26068294,668.1,666.86,1.11969744]
[1748065552872,1.11773492,667.45,666.86,1.11969744]
[1748065555286,1.11773492,667.46,666.85,1.11969744]
[1748065557588,1.11773492,667.46,666.86,1.11969744]
[1748065559888,1.11773492,667.46,666.85,1.11969744]
[1748065562090,1.11773492,667.42,666.89,1.11969744]
[1748065564893,1.11773492,667.43,666.9,1.11969744]
[1748065567894,1.11773492,667.42,666.91,1.11969744]
[1748065571000,1.11773492,667.4,666.93,1.11969744]
[1748065573103,1.11773492,667.37,666.96,1.11969744]
[1748065575705,1.11773492,667.37,666.95,1.11969744]
[1748065577803,1.11773492,667.36,666.95,1.11969744]
[1748065578708,0.44067178,667.35,666.95,1.11969744]
[1748065578907,0.44067178,667.34,666.95,1.11969744]
[1748065579106,0.44067178,667.33,666.95,1.11969744]
[1748065579308,0.44067178,667.32,666.95,1.11969744]
[1748065579506,0.44067178,667.31,666.95,1.11969744]
[1748065579707,0.44067178,667.3,666.95,1.11969744]
[1748065579908,0.44067178,667.29,666.95,1.11969744]